[Event "Titled Tuesday Blitz January 04 2022"]
[White "Lorparizangeneh, Shahin"]
[Black "Sadhwani, Raunak"]
[WhiteFideId "12521604"]
[BlackFideId "35093487"]
[WhiteElo "2525"]
[BlackElo "2616"]
[Result "0-1"]
[Round "03"]
[TimeControl "180+1"]
[Date "2022.01.04"]
[WhiteClock "0:00:06"]
[BlackClock "0:00:23"]

1. d4 {[%clk 0:03:00]}  Nf6 {[%clk 0:03:00]} 2. Nf3 {[%clk 0:03:00]}  g6 {[%clk 0:03:00]} 3. Bg5 {[%clk 0:02:58]}  Bg7 {[%clk 0:03:01]} 4. Nbd2 {[%clk 0:02:58]}  O-O {[%clk 0:03:01]} 5. e3 {[%clk 0:02:58]}  b6 {[%clk 0:03:01]} 6. Be2 {[%clk 0:02:57]}  Bb7 {[%clk 0:03:01]} 7. O-O {[%clk 0:02:57]}  c5 {[%clk 0:03:00]} 8. a4 {[%clk 0:02:57]}  d6 {[%clk 0:02:56]} 9. c3 {[%clk 0:02:56]}  a6 {[%clk 0:02:56]} 10. Re1 {[%clk 0:02:50]}  Nbd7 {[%clk 0:02:54]} 11. Bd3 {[%clk 0:02:49]}  h6 {[%clk 0:02:49]} 12. Bh4 {[%clk 0:02:49]}  Qc7 {[%clk 0:02:45]} 13. e4 {[%clk 0:02:47]}  e5 {[%clk 0:02:45]} 14. dxe5 {[%clk 0:02:43]}  dxe5 {[%clk 0:02:46]} 15. Qc2 {[%clk 0:02:36]}  Nh5 {[%clk 0:02:46]} 16. Bg3 {[%clk 0:02:31]}  Nf4 {[%clk 0:02:38]} 17. Nc4 {[%clk 0:02:21]}  b5 {[%clk 0:02:28]} 18. axb5 {[%clk 0:02:01]}  axb5 {[%clk 0:02:29]} 19. Rxa8 {[%clk 0:02:01]}  Bxa8 {[%clk 0:02:30]} 20. Ne3 {[%clk 0:01:58]}  Nxd3 {[%clk 0:02:21]} 21. Qxd3 {[%clk 0:01:57]}  c4 {[%clk 0:02:21]} 22. Qc2 {[%clk 0:01:44]}  Nc5 {[%clk 0:02:21]} 23. Nd5 {[%clk 0:01:40]}  Bxd5 {[%clk 0:02:21]} 24. exd5 {[%clk 0:01:41]}  Nd3 {[%clk 0:02:22]} 25. Re2 {[%clk 0:01:37]}  Qd6 {[%clk 0:02:19]} 26. b3 {[%clk 0:01:29]}  Qxd5 {[%clk 0:02:16]} 27. bxc4 {[%clk 0:01:30]}  bxc4 {[%clk 0:02:17]} 28. h4 {[%clk 0:01:30]}  f5 {[%clk 0:02:12]} 29. Nd2 {[%clk 0:01:06]}  e4 {[%clk 0:02:00]} 30. Bc7 {[%clk 0:00:33]}  Ra8 {[%clk 0:01:51]} 31. Kh2 {[%clk 0:00:20]}  Qc6 {[%clk 0:01:44]} 32. Bg3 {[%clk 0:00:21]}  f4 {[%clk 0:01:44]} 33. Rxe4 {[%clk 0:00:22]}  fxg3+ {[%clk 0:01:43]} 34. fxg3 {[%clk 0:00:23]}  Ne5 {[%clk 0:01:21]} 35. Nf1 {[%clk 0:00:15]}  h5 {[%clk 0:01:11]} 36. Ne3 {[%clk 0:00:15]}  Rd8 {[%clk 0:01:00]} 37. Rf4 {[%clk 0:00:13]}  Bh6 {[%clk 0:00:40]} 38. Re4 {[%clk 0:00:09]}  Re8 {[%clk 0:00:31]} 39. Nxc4 {[%clk 0:00:06]}  Ng4+ {[%clk 0:00:23]} 0-1


[Site "https://www.chess.com"]

[Event "Titled Tuesday Blitz January 04 2022"]
[White "Maly, Alexey"]
[Black "Bodnar, Nikolay"]
[WhiteFideId "14103184"]
[BlackFideId "14106469"]
[WhiteElo "2266"]
[BlackElo "2296"]
[Result "1-0"]
[Round "03"]
[TimeControl "180+1"]
[Date "2022.01.04"]
[WhiteClock "0:01:08"]
[BlackClock "0:00:07"]

1. d4 {[%clk 0:03:00]}  Nf6 {[%clk 0:02:59]} 2. c4 {[%clk 0:02:59]}  e6 {[%clk 0:02:59]} 3. Nf3 {[%clk 0:02:59]}  d5 {[%clk 0:02:59]} 4. e3 {[%clk 0:02:59]}  Be7 {[%clk 0:02:49]} 5. Nbd2 {[%clk 0:02:59]}  O-O {[%clk 0:02:49]} 6. Bd3 {[%clk 0:02:58]}  a6 {[%clk 0:02:46]} 7. O-O {[%clk 0:02:57]}  dxc4 {[%clk 0:02:45]} 8. Nxc4 {[%clk 0:02:56]}  b5 {[%clk 0:02:46]} 9. Nce5 {[%clk 0:02:56]}  Bb7 {[%clk 0:02:46]} 10. a4 {[%clk 0:02:55]}  b4 {[%clk 0:02:44]} 11. b3 {[%clk 0:02:55]}  c5 {[%clk 0:02:44]} 12. Bb2 {[%clk 0:02:54]}  Nbd7 {[%clk 0:02:26]} 13. Qe2 {[%clk 0:02:47]}  cxd4 {[%clk 0:02:24]} 14. Bxd4 {[%clk 0:02:46]}  Nc5 {[%clk 0:02:18]} 15. Bc4 {[%clk 0:02:37]}  Nfe4 {[%clk 0:02:11]} 16. Rfd1 {[%clk 0:02:32]}  Qc7 {[%clk 0:01:47]} 17. Rac1 {[%clk 0:02:32]}  Rac8 {[%clk 0:01:38]} 18. Nd3 {[%clk 0:02:29]}  Qa5 {[%clk 0:01:18]} 19. Nxc5 {[%clk 0:02:22]}  Bxc5 {[%clk 0:01:14]} 20. Bxc5 {[%clk 0:02:13]}  Rxc5 {[%clk 0:01:15]} 21. Rd7 {[%clk 0:02:06]}  Bc8 {[%clk 0:01:07]} 22. Rd3 {[%clk 0:02:00]}  Nc3 {[%clk 0:01:04]} 23. Qe1 {[%clk 0:02:00]}  Qc7 {[%clk 0:01:03]} 24. h3 {[%clk 0:01:55]}  Bb7 {[%clk 0:01:00]} 25. Nd2 {[%clk 0:01:53]}  Qc6 {[%clk 0:00:55]} 26. f3 {[%clk 0:01:48]}  Qc7 {[%clk 0:00:46]} 27. e4 {[%clk 0:01:45]}  Rd8 {[%clk 0:00:43]} 28. Rxd8+ {[%clk 0:01:42]}  Qxd8 {[%clk 0:00:43]} 29. Nb1 {[%clk 0:01:40]}  Qd4+ {[%clk 0:00:37]} 30. Kh2 {[%clk 0:01:36]}  Qe5+ {[%clk 0:00:35]} 31. Kh1 {[%clk 0:01:33]}  Bxe4 {[%clk 0:00:29]} 32. Nxc3 {[%clk 0:01:23]}  bxc3 {[%clk 0:00:27]} 33. Qxe4 {[%clk 0:01:22]}  Qb8 {[%clk 0:00:12]} 34. Rxc3 {[%clk 0:01:17]}  Re5 {[%clk 0:00:12]} 35. Qb1 {[%clk 0:01:16]}  Qb4 {[%clk 0:00:11]} 36. Rc1 {[%clk 0:01:15]}  h5 {[%clk 0:00:09]} 37. Rd1 {[%clk 0:01:13]}  g6 {[%clk 0:00:09]} 38. Qb2 {[%clk 0:01:09]}  Qc5 {[%clk 0:00:07]} 39. f4 {[%clk 0:01:08]} 1-0


[Site "https://www.chess.com"]

[Event "Titled Tuesday Blitz January 04 2022"]
[White "Mihok, Oliver"]
[Black "Zhigalko, Sergei"]
[WhiteFideId "728012"]
[BlackFideId "13502956"]
[WhiteElo "2376"]
[BlackElo "2662"]
[Result "0-1"]
[Round "03"]
[TimeControl "180+1"]
[Date "2022.01.04"]
[WhiteClock "0:00:02"]
[BlackClock "0:00:02"]

1. e4 {[%clk 0:03:00]}  c5 {[%clk 0:02:57]} 2. Nf3 {[%clk 0:03:00]}  Nc6 {[%clk 0:02:56]} 3. Nc3 {[%clk 0:03:00]}  Nf6 {[%clk 0:02:56]} 4. Bb5 {[%clk 0:02:59]}  Qc7 {[%clk 0:02:56]} 5. O-O {[%clk 0:02:45]}  Nd4 {[%clk 0:02:56]} 6. Ba4 {[%clk 0:02:40]}  a6 {[%clk 0:02:45]} 7. Nxd4 {[%clk 0:02:35]}  cxd4 {[%clk 0:02:46]} 8. Nd5 {[%clk 0:02:34]}  Nxd5 {[%clk 0:02:39]} 9. exd5 {[%clk 0:02:35]}  b5 {[%clk 0:02:39]} 10. Bb3 {[%clk 0:02:34]}  Bb7 {[%clk 0:02:40]} 11. d3 {[%clk 0:02:23]}  Qc5 {[%clk 0:02:26]} 12. Qf3 {[%clk 0:02:05]}  e6 {[%clk 0:02:22]} 13. Bg5 {[%clk 0:01:55]}  Bd6 {[%clk 0:02:16]} 14. Rfe1 {[%clk 0:01:22]}  O-O {[%clk 0:02:15]} 15. Qg4 {[%clk 0:01:17]}  f5 {[%clk 0:02:10]} 16. Qf3 {[%clk 0:01:03]}  Rac8 {[%clk 0:01:45]} 17. h4 {[%clk 0:00:59]}  Bxd5 {[%clk 0:01:01]} 18. Bxd5 {[%clk 0:00:57]}  Qxd5 {[%clk 0:01:02]} 19. Qxd5 {[%clk 0:00:56]}  exd5 {[%clk 0:01:03]} 20. Re2 {[%clk 0:00:53]}  f4 {[%clk 0:00:49]} 21. h5 {[%clk 0:00:33]}  Rf5 {[%clk 0:00:28]} 22. Be7 {[%clk 0:00:24]}  Bxe7 {[%clk 0:00:27]} 23. Rxe7 {[%clk 0:00:24]}  Rxc2 {[%clk 0:00:27]} 24. Rxd7 {[%clk 0:00:22]}  h6 {[%clk 0:00:15]} 25. Re1 {[%clk 0:00:19]}  Rxh5 {[%clk 0:00:13]} 26. Rd6 {[%clk 0:00:12]}  a5 {[%clk 0:00:10]} 27. b3 {[%clk 0:00:08]}  Rxa2 {[%clk 0:00:09]} 28. Rb6 {[%clk 0:00:08]}  b4 {[%clk 0:00:09]} 29. Ra6 {[%clk 0:00:06]}  Rg5 {[%clk 0:00:08]} 30. Ra8+ {[%clk 0:00:03]}  Kh7 {[%clk 0:00:08]} 31. Kf1 {[%clk 0:00:03]}  Rh5 {[%clk 0:00:07]} 32. Kg1 {[%clk 0:00:03]}  Ra3 {[%clk 0:00:07]} 33. Ra7 {[%clk 0:00:02]}  Rg5 {[%clk 0:00:06]} 34. Kf1 {[%clk 0:00:01]}  Rxb3 {[%clk 0:00:06]} 35. Rxa5 {[%clk 0:00:01]}  Rxd3 {[%clk 0:00:07]} 36. Rb5 {[%clk 0:00:01]}  b3 {[%clk 0:00:04]} 37. Rb1 {[%clk 0:00:01]}  f3 {[%clk 0:00:05]} 38. g3 {[%clk 0:00:01]}  Rh5 {[%clk 0:00:04]} 39. Kg1 {[%clk 0:00:01]}  Re5 {[%clk 0:00:03]} 40. R5xb3 {[%clk 0:00:01]}  Rxb3 {[%clk 0:00:04]} 41. Rxb3 {[%clk 0:00:02]}  Re1+ {[%clk 0:00:04]} 42. Kh2 {[%clk 0:00:02]}  Rd1 {[%clk 0:00:02]} 43. Rxf3 {[%clk 0:00:02]}  Kg6 {[%clk 0:00:02]} 44. Kg2 {[%clk 0:00:02]}  d3 {[%clk 0:00:03]} 45. Rf4 {[%clk 0:00:02]}  Kg5 {[%clk 0:00:01]} 46. Rd4 {[%clk 0:00:02]}  Kf5 {[%clk 0:00:02]} 47. Kf3 {[%clk 0:00:02]}  Ke5 {[%clk 0:00:02]} 0-1


[Site "https://www.chess.com"]

[Event "Titled Tuesday Blitz January 04 2022"]
[White "Ozen, Bahadir"]
[Black "Sanal, Vahap"]
[WhiteFideId "6337058"]
[BlackFideId "6300545"]
[WhiteElo "2503"]
[BlackElo "2603"]
[Result "0-1"]
[Round "03"]
[TimeControl "180+1"]
[Date "2022.01.04"]
[WhiteClock "0:00:35"]
[BlackClock "0:01:45"]

1. d4 {[%clk 0:03:00]}  Nf6 {[%clk 0:03:00]} 2. Nf3 {[%clk 0:03:01]}  d5 {[%clk 0:02:58]} 3. c4 {[%clk 0:03:00]}  e6 {[%clk 0:02:58]} 4. Nc3 {[%clk 0:03:00]}  c6 {[%clk 0:02:58]} 5. Bg5 {[%clk 0:02:59]}  h6 {[%clk 0:02:57]} 6. Bxf6 {[%clk 0:02:59]}  Qxf6 {[%clk 0:02:57]} 7. e3 {[%clk 0:02:59]}  g6 {[%clk 0:02:54]} 8. Be2 {[%clk 0:02:59]}  Bg7 {[%clk 0:02:54]} 9. O-O {[%clk 0:02:59]}  O-O {[%clk 0:02:54]} 10. cxd5 {[%clk 0:02:51]}  exd5 {[%clk 0:02:54]} 11. b4 {[%clk 0:02:51]}  Be6 {[%clk 0:02:41]} 12. Rc1 {[%clk 0:02:41]}  Nd7 {[%clk 0:02:34]} 13. b5 {[%clk 0:02:41]}  Rfc8 {[%clk 0:02:32]} 14. bxc6 {[%clk 0:02:36]}  bxc6 {[%clk 0:02:32]} 15. Na4 {[%clk 0:02:31]}  Bf8 {[%clk 0:02:29]} 16. Qd2 {[%clk 0:02:15]}  a5 {[%clk 0:02:28]} 17. Rc2 {[%clk 0:02:11]}  Bb4 {[%clk 0:02:26]} 18. Qc1 {[%clk 0:02:10]}  Bf5 {[%clk 0:02:25]} 19. Rd1 {[%clk 0:01:50]}  Bxc2 {[%clk 0:02:24]} 20. Qxc2 {[%clk 0:01:51]}  Kg7 {[%clk 0:02:20]} 21. g3 {[%clk 0:01:50]}  Rab8 {[%clk 0:02:18]} 22. Kg2 {[%clk 0:01:50]}  c5 {[%clk 0:02:17]} 23. dxc5 {[%clk 0:01:50]}  Nxc5 {[%clk 0:02:17]} 24. Rxd5 {[%clk 0:01:49]}  Nxa4 {[%clk 0:02:00]} 25. Qxa4 {[%clk 0:01:50]}  Rc3 {[%clk 0:01:55]} 26. Qd7 {[%clk 0:01:50]}  Rc2 {[%clk 0:01:51]} 27. Nd4 {[%clk 0:01:47]}  Rxa2 {[%clk 0:01:48]} 28. Bf3 {[%clk 0:00:42]}  Be1 {[%clk 0:01:44]} 29. Ne2 {[%clk 0:00:38]}  Rxe2 {[%clk 0:01:43]} 30. Bxe2 {[%clk 0:00:36]}  Qxf2+ {[%clk 0:01:44]} 31. Kh3 {[%clk 0:00:37]}  Qxe2 {[%clk 0:01:45]} 32. Qxf7+ {[%clk 0:00:35]} 0-1


[Site "https://www.chess.com"]

[Event "Titled Tuesday Blitz January 04 2022"]
[White "Padmini, Rout"]
[Black "Sipila, Vilka"]
[WhiteFideId "5029295"]
[BlackFideId "505455"]
[WhiteElo "2181"]
[BlackElo "2329"]
[Result "1-0"]
[Round "03"]
[TimeControl "180+1"]
[Date "2022.01.04"]
[WhiteClock "0:00:24"]
[BlackClock "0:00:47"]

1. Nf3 {[%clk 0:03:00]}  f5 {[%clk 0:02:59]} 2. d4 {[%clk 0:02:59]}  Nf6 {[%clk 0:02:59]} 3. Nc3 {[%clk 0:02:55]}  g6 {[%clk 0:02:57]} 4. Bg5 {[%clk 0:02:53]}  Ne4 {[%clk 0:02:53]} 5. Nxe4 {[%clk 0:02:49]}  fxe4 {[%clk 0:02:53]} 6. Nd2 {[%clk 0:02:49]}  d5 {[%clk 0:02:53]} 7. c4 {[%clk 0:02:49]}  Bg7 {[%clk 0:02:52]} 8. e3 {[%clk 0:02:48]}  c6 {[%clk 0:02:49]} 9. Qb3 {[%clk 0:02:44]}  h6 {[%clk 0:02:37]} 10. Bf4 {[%clk 0:02:42]}  e6 {[%clk 0:02:33]} 11. O-O-O {[%clk 0:02:28]}  O-O {[%clk 0:02:32]} 12. f3 {[%clk 0:02:26]}  exf3 {[%clk 0:02:31]} 13. Nxf3 {[%clk 0:02:27]}  Nd7 {[%clk 0:02:27]} 14. Bd3 {[%clk 0:02:23]}  e5 {[%clk 0:02:22]} 15. Nxe5 {[%clk 0:02:16]}  Nxe5 {[%clk 0:02:13]} 16. dxe5 {[%clk 0:02:10]}  g5 {[%clk 0:02:13]} 17. Bg3 {[%clk 0:02:09]}  Be6 {[%clk 0:02:13]} 18. Bb1 {[%clk 0:02:05]}  Qc7 {[%clk 0:02:11]} 19. Rhf1 {[%clk 0:01:44]}  Bxe5 {[%clk 0:02:10]} 20. Qc2 {[%clk 0:01:21]}  Bxg3 {[%clk 0:01:12]} 21. Qg6+ {[%clk 0:01:18]}  Qg7 {[%clk 0:01:12]} 22. Qxe6+ {[%clk 0:01:13]}  Kh8 {[%clk 0:01:13]} 23. hxg3 {[%clk 0:01:09]}  Rae8 {[%clk 0:01:13]} 24. Rxf8+ {[%clk 0:01:02]}  Qxf8 {[%clk 0:01:13]} 25. Qg6 {[%clk 0:01:00]}  Re7 {[%clk 0:01:13]} 26. Rh1 {[%clk 0:00:57]}  Qg7 {[%clk 0:01:13]} 27. Rxh6+ {[%clk 0:00:44]}  Kg8 {[%clk 0:01:14]} 28. Qh5 {[%clk 0:00:42]}  Qe5 {[%clk 0:01:10]} 29. Rg6+ {[%clk 0:00:30]}  Kf8 {[%clk 0:01:10]} 30. Qh6+ {[%clk 0:00:17]}  Kf7 {[%clk 0:01:09]} 31. Qxg5 {[%clk 0:00:15]}  Qxe3+ {[%clk 0:01:08]} 32. Qxe3 {[%clk 0:00:15]}  Rxe3 {[%clk 0:01:09]} 33. Rg4 {[%clk 0:00:14]}  Re1+ {[%clk 0:01:06]} 34. Kc2 {[%clk 0:00:15]}  Re2+ {[%clk 0:01:06]} 35. Kb3 {[%clk 0:00:14]}  Rxg2 {[%clk 0:01:03]} 36. cxd5 {[%clk 0:00:14]}  cxd5 {[%clk 0:01:04]} 37. Bf5 {[%clk 0:00:14]}  Kf6 {[%clk 0:01:04]} 38. Bc8 {[%clk 0:00:14]}  b6 {[%clk 0:01:05]} 39. Bb7 {[%clk 0:00:14]}  Ke6 {[%clk 0:01:00]} 40. Rg5 {[%clk 0:00:13]}  Rd2 {[%clk 0:00:58]} 41. Kc3 {[%clk 0:00:13]}  Rd1 {[%clk 0:00:58]} 42. Rg7 {[%clk 0:00:13]}  d4+ {[%clk 0:00:56]} 43. Kc2 {[%clk 0:00:13]}  Rg1 {[%clk 0:00:55]} 44. Bc8+ {[%clk 0:00:13]}  Ke5 {[%clk 0:00:55]} 45. Rg5+ {[%clk 0:00:12]}  Ke4 {[%clk 0:00:55]} 46. Bb7+ {[%clk 0:00:12]}  Ke3 {[%clk 0:00:55]} 47. Re5+ {[%clk 0:00:12]}  Kf2 {[%clk 0:00:56]} 48. Re4 {[%clk 0:00:10]}  Rxg3 {[%clk 0:00:47]} 49. Rxd4 {[%clk 0:00:11]}  Rg7 {[%clk 0:00:44]} 50. Rd2+ {[%clk 0:00:11]}  Ke3 {[%clk 0:00:44]} 51. Ba6 {[%clk 0:00:12]}  Rc7+ {[%clk 0:00:43]} 52. Kd1 {[%clk 0:00:13]}  Rg7 {[%clk 0:00:43]} 53. Rd3+ {[%clk 0:00:13]}  Ke4 {[%clk 0:00:43]} 54. Kc2 {[%clk 0:00:13]}  Rg5 {[%clk 0:00:42]} 55. a3 {[%clk 0:00:13]}  Ra5 {[%clk 0:00:42]} 56. Bb7+ {[%clk 0:00:13]}  Ke5 {[%clk 0:00:42]} 57. b4 {[%clk 0:00:14]}  Rb5 {[%clk 0:00:37]} 58. Bc6 {[%clk 0:00:13]}  Rc5+ {[%clk 0:00:35]} 59. bxc5 {[%clk 0:00:13]}  bxc5 {[%clk 0:00:36]} 60. Rd5+ {[%clk 0:00:14]}  Ke6 {[%clk 0:00:36]} 61. Rxc5 {[%clk 0:00:15]}  Kd6 {[%clk 0:00:37]} 62. Rc3 {[%clk 0:00:16]}  Kc7 {[%clk 0:00:38]} 63. a4 {[%clk 0:00:16]}  Kb6 {[%clk 0:00:38]} 64. Bh1 {[%clk 0:00:17]}  Ka5 {[%clk 0:00:39]} 65. Kb3 {[%clk 0:00:18]}  Kb6 {[%clk 0:00:40]} 66. Rc6+ {[%clk 0:00:18]}  Ka5 {[%clk 0:00:41]} 67. Rc5+ {[%clk 0:00:19]}  Kb6 {[%clk 0:00:41]} 68. Rh5 {[%clk 0:00:19]}  Ka6 {[%clk 0:00:42]} 69. Kb4 {[%clk 0:00:19]}  Kb6 {[%clk 0:00:43]} 70. Bg2 {[%clk 0:00:20]}  Ka6 {[%clk 0:00:44]} 71. Bf1+ {[%clk 0:00:21]}  Kb6 {[%clk 0:00:44]} 72. a5+ {[%clk 0:00:22]}  Kb7 {[%clk 0:00:45]} 73. Rh6 {[%clk 0:00:22]}  Kc7 {[%clk 0:00:45]} 74. Kc5 {[%clk 0:00:23]}  Kb7 {[%clk 0:00:45]} 75. Be2 {[%clk 0:00:24]}  a6 {[%clk 0:00:46]} 76. Rh7+ {[%clk 0:00:24]}  Kc8 {[%clk 0:00:46]} 77. Kd6 {[%clk 0:00:24]}  Kb8 {[%clk 0:00:45]} 78. Kc6 {[%clk 0:00:24]}  Ka8 {[%clk 0:00:46]} 79. Kb6 {[%clk 0:00:24]}  Kb8 {[%clk 0:00:47]} 80. Rh8# {[%clk 0:00:24]} 1-0


[Site "https://www.chess.com"]

[Event "Titled Tuesday Blitz January 04 2022"]
[White "Piorun, Kacper"]
[Black "Volkov, Maksim"]
[WhiteFideId "1130420"]
[BlackFideId "54123070"]
[WhiteElo "2571"]
[BlackElo "2081"]
[Result "1/2-1/2"]
[Round "03"]
[TimeControl "180+1"]
[Date "2022.01.04"]
[WhiteClock "0:00:53"]
[BlackClock "0:00:24"]

1. e4 {[%clk 0:03:00]}  c5 {[%clk 0:02:58]} 2. Nc3 {[%clk 0:03:00]}  e6 {[%clk 0:02:58]} 3. g3 {[%clk 0:02:59]}  d5 {[%clk 0:02:55]} 4. d3 {[%clk 0:02:59]}  Nf6 {[%clk 0:02:54]} 5. Bg2 {[%clk 0:02:59]}  Nc6 {[%clk 0:02:52]} 6. f4 {[%clk 0:02:58]}  dxe4 {[%clk 0:02:46]} 7. dxe4 {[%clk 0:02:57]}  Qxd1+ {[%clk 0:02:45]} 8. Nxd1 {[%clk 0:02:58]}  e5 {[%clk 0:02:36]} 9. Ne3 {[%clk 0:02:54]}  Bd6 {[%clk 0:02:26]} 10. Ne2 {[%clk 0:02:49]}  O-O {[%clk 0:02:19]} 11. f5 {[%clk 0:02:45]}  b5 {[%clk 0:02:10]} 12. a4 {[%clk 0:02:43]}  bxa4 {[%clk 0:02:00]} 13. Rxa4 {[%clk 0:02:42]}  a5 {[%clk 0:01:56]} 14. g4 {[%clk 0:02:41]}  h6 {[%clk 0:01:54]} 15. h4 {[%clk 0:02:40]}  Ba6 {[%clk 0:01:53]} 16. g5 {[%clk 0:02:35]}  Nh5 {[%clk 0:01:52]} 17. Bf3 {[%clk 0:02:28]}  Bxe2 {[%clk 0:01:51]} 18. Bxe2 {[%clk 0:02:29]}  Ng3 {[%clk 0:01:49]} 19. Rh3 {[%clk 0:02:28]}  Nxe2 {[%clk 0:01:49]} 20. Kxe2 {[%clk 0:02:29]}  Nd4+ {[%clk 0:01:46]} 21. Kf2 {[%clk 0:02:29]}  Rfc8 {[%clk 0:01:39]} 22. Nc4 {[%clk 0:02:21]}  Bc7 {[%clk 0:01:36]} 23. gxh6 {[%clk 0:02:21]}  gxh6 {[%clk 0:01:34]} 24. c3 {[%clk 0:02:19]}  Nb5 {[%clk 0:01:26]} 25. Bxh6 {[%clk 0:02:18]}  Rd8 {[%clk 0:01:25]} 26. Ke2 {[%clk 0:02:15]}  Rd7 {[%clk 0:01:20]} 27. Be3 {[%clk 0:02:13]}  Rad8 {[%clk 0:01:16]} 28. Bxc5 {[%clk 0:02:07]}  Rd1 {[%clk 0:01:16]} 29. Rg3+ {[%clk 0:02:08]}  Kh7 {[%clk 0:01:15]} 30. Rg1 {[%clk 0:02:08]}  R1d3 {[%clk 0:01:11]} 31. Be3 {[%clk 0:02:08]}  Rxc3 {[%clk 0:01:09]} 32. Rc1 {[%clk 0:01:40]}  Rb3 {[%clk 0:00:58]} 33. Rc2 {[%clk 0:01:12]}  Nd4+ {[%clk 0:00:52]} 34. Bxd4 {[%clk 0:01:11]}  Rxd4 {[%clk 0:00:53]} 35. Rc3 {[%clk 0:01:01]}  Rxe4+ {[%clk 0:00:48]} 36. Kf3 {[%clk 0:01:01]}  Rf4+ {[%clk 0:00:45]} 37. Ke3 {[%clk 0:01:00]}  Rxc3+ {[%clk 0:00:42]} 38. bxc3 {[%clk 0:01:01]}  Rxh4 {[%clk 0:00:42]} 39. Nb2 {[%clk 0:01:01]}  Bb6+ {[%clk 0:00:41]} 40. Kd3 {[%clk 0:00:59]}  Rh3+ {[%clk 0:00:38]} 41. Kc4 {[%clk 0:00:59]}  Kg7 {[%clk 0:00:36]} 42. Kb5 {[%clk 0:00:55]}  Bd8 {[%clk 0:00:36]} 43. Rg4+ {[%clk 0:00:54]}  Kf6 {[%clk 0:00:36]} 44. Rg8 {[%clk 0:00:53]}  Bc7 {[%clk 0:00:36]} 45. Na4 {[%clk 0:00:52]}  e4 {[%clk 0:00:35]} 46. Re8 {[%clk 0:00:52]}  e3 {[%clk 0:00:34]} 47. Nc5 {[%clk 0:00:52]}  Kxf5 {[%clk 0:00:33]} 48. Re7 {[%clk 0:00:51]}  Bd6 {[%clk 0:00:33]} 49. Rxf7+ {[%clk 0:00:51]}  Kg6 {[%clk 0:00:33]} 50. Rd7 {[%clk 0:00:46]}  Bxc5 {[%clk 0:00:26]} 51. Kxc5 {[%clk 0:00:47]}  e2 {[%clk 0:00:25]} 52. Re7 {[%clk 0:00:47]}  Rxc3+ {[%clk 0:00:25]} 53. Kd4 {[%clk 0:00:47]}  Rc2 {[%clk 0:00:25]} 54. Kd3 {[%clk 0:00:48]}  Rb2 {[%clk 0:00:25]} 55. Rxe2 {[%clk 0:00:48]}  Rxe2 {[%clk 0:00:22]} 56. Kxe2 {[%clk 0:00:49]}  a4 {[%clk 0:00:22]} 57. Kd3 {[%clk 0:00:50]}  a3 {[%clk 0:00:22]} 58. Kc2 {[%clk 0:00:51]}  a2 {[%clk 0:00:23]} 59. Kb2 {[%clk 0:00:52]}  a1=Q+ {[%clk 0:00:24]} 60. Kxa1 {[%clk 0:00:53]} 1/2-1/2


[Site "https://www.chess.com"]

[Event "Titled Tuesday Blitz January 04 2022"]
[White "Senthil Maran K"]
[Black "Ibrahimli, Murad"]
[WhiteFideId "25035681"]
[BlackFideId "13410229"]
[WhiteElo "2194"]
[BlackElo "2109"]
[Result "0-1"]
[Round "03"]
[TimeControl "180+1"]
[Date "2022.01.04"]
[WhiteClock "0:00:01"]
[BlackClock "0:00:56"]

1. d4 {[%clk 0:03:00]}  Nf6 {[%clk 0:02:58]} 2. Nf3 {[%clk 0:03:01]}  e6 {[%clk 0:02:58]} 3. g3 {[%clk 0:03:01]}  b5 {[%clk 0:02:58]} 4. Bg2 {[%clk 0:03:01]}  Bb7 {[%clk 0:02:58]} 5. O-O {[%clk 0:03:01]}  Be7 {[%clk 0:02:58]} 6. a4 {[%clk 0:03:00]}  b4 {[%clk 0:02:58]} 7. c4 {[%clk 0:03:00]}  bxc3 {[%clk 0:02:57]} 8. Nxc3 {[%clk 0:03:00]}  O-O {[%clk 0:02:57]} 9. a5 {[%clk 0:02:58]}  Na6 {[%clk 0:02:54]} 10. Re1 {[%clk 0:02:42]}  Bb4 {[%clk 0:02:51]} 11. Qd3 {[%clk 0:02:36]}  c5 {[%clk 0:02:36]} 12. Bd2 {[%clk 0:01:57]}  Rc8 {[%clk 0:02:20]} 13. dxc5 {[%clk 0:01:12]}  Bxc5 {[%clk 0:02:12]} 14. Qb5 {[%clk 0:00:56]}  Rb8 {[%clk 0:02:11]} 15. Qc4 {[%clk 0:00:47]}  d5 {[%clk 0:01:59]} 16. Qa4 {[%clk 0:00:40]}  Ne4 {[%clk 0:01:54]} 17. Be3 {[%clk 0:00:15]}  Bxe3 {[%clk 0:01:53]} 18. fxe3 {[%clk 0:00:16]}  Nxc3 {[%clk 0:01:51]} 19. bxc3 {[%clk 0:00:17]}  Nc5 {[%clk 0:01:51]} 20. Qc2 {[%clk 0:00:16]}  Ba6 {[%clk 0:01:49]} 21. Nd4 {[%clk 0:00:14]}  Qg5 {[%clk 0:01:47]} 22. Kf2 {[%clk 0:00:04]}  e5 {[%clk 0:01:41]} 23. Nf3 {[%clk 0:00:04]}  Qf6 {[%clk 0:01:40]} 24. Kg1 {[%clk 0:00:02]}  Rbc8 {[%clk 0:01:38]} 25. Reb1 {[%clk 0:00:02]}  Ne4 {[%clk 0:01:37]} 26. Ra3 {[%clk 0:00:02]}  Qd6 {[%clk 0:01:19]} 27. Qc1 {[%clk 0:00:01]}  f6 {[%clk 0:01:14]} 28. Rab3 {[%clk 0:00:02]}  Bxe2 {[%clk 0:01:06]} 29. Qe1 {[%clk 0:00:02]}  Bd3 {[%clk 0:01:03]} 30. Rc1 {[%clk 0:00:01]}  Rb8 {[%clk 0:01:00]} 31. Rxb8 {[%clk 0:00:01]}  Rxb8 {[%clk 0:01:01]} 32. Nd2 {[%clk 0:00:01]}  Nc5 {[%clk 0:00:59]} 33. Nf3 {[%clk 0:00:01]}  Be4 {[%clk 0:00:59]} 34. Nd2 {[%clk 0:00:02]}  Bxg2 {[%clk 0:00:58]} 35. Kxg2 {[%clk 0:00:02]}  Nd3 {[%clk 0:00:59]} 36. Qf1 {[%clk 0:00:02]}  Nxc1 {[%clk 0:01:00]} 37. Qxc1 {[%clk 0:00:03]}  Qc6 {[%clk 0:00:59]} 38. Kg1 {[%clk 0:00:03]}  Qc5 {[%clk 0:00:59]} 39. Kf2 {[%clk 0:00:02]}  Qxa5 {[%clk 0:00:59]} 40. Qc2 {[%clk 0:00:03]}  Qa3 {[%clk 0:00:59]} 41. Qd3 {[%clk 0:00:03]}  Qc5 {[%clk 0:00:57]} 42. Ke2 {[%clk 0:00:03]}  g6 {[%clk 0:00:57]} 43. g4 {[%clk 0:00:03]}  e4 {[%clk 0:00:56]} 44. Qc2 {[%clk 0:00:03]}  Qb5+ {[%clk 0:00:56]} 45. Kf2 {[%clk 0:00:03]}  Qd3 {[%clk 0:00:56]} 46. Qa2 {[%clk 0:00:03]}  f5 {[%clk 0:00:55]} 47. gxf5 {[%clk 0:00:03]}  Rf8 {[%clk 0:00:55]} 48. f6 {[%clk 0:00:02]}  Rxf6+ {[%clk 0:00:55]} 49. Kg2 {[%clk 0:00:03]}  Qe2+ {[%clk 0:00:55]} 50. Kg3 {[%clk 0:00:03]}  Qxe3+ {[%clk 0:00:55]} 51. Kg2 {[%clk 0:00:03]}  Rf2+ {[%clk 0:00:55]} 52. Kg1 {[%clk 0:00:03]}  Rxd2+ {[%clk 0:00:56]} 53. Kf1 {[%clk 0:00:01]}  Qe2+ {[%clk 0:00:56]} 0-1


[Site "https://www.chess.com"]